Workbook

Sheet Foglio1
A4: CLASSIFICA ASSOLUTA INDIVIDUALE FEMMINILE MASCHILE XXXIII CIRCUITO MASTER OLD STARS 2019 | B4: CLASSIFICA ASSOLUTA INDIVIDUALE FEMMINILE MASCHILE XXXV CIRCUITO MASTER ELAN OLD STARS 2021
B9: FEMMINILE DAME C5 | C9: Anno | D9: Società | E9: Temù | F9: M.Pora | G9: S.taCat | H9: S.taCat | I9: S.taCat | J9: Comb. | K9: Chiesa | L9: Chiesa | M9: Comb. | N9: Chiesa | O9: Chiesa | P9: Comb. | Q9: Tonale | R9: Tonale | S9: Tonale | T9: Tonale | U9: Comb. | V9: Bonus | W9: Totale | X9: Classifica
B10: dal 1950 e precedenti
B11: CROTTI CATERINA | C11: 1947 | D11: S.C.Cernobbio | E11: 80 | G11: 80 | H11: 80 | I11: 80 | J11: 80 | K11: 80 | L11: 80 | M11: 80 | N11: 80 | O11: 80 | P11: 80 | Q11: 45 | R11: 100 | S11: 100 | T11: 100 | U11: 100 | V11: 30 | W11: =SUM(E11:V11) -> 1355 | X11: 1 | IT11: =SUM(A11:IS11) -> 4658
B12: FABRETTO ANNA | C12: 1941 | D12: S.C.Marinelli | E12: 100 | G12: 100 | H12: 100 | I12: 100 | J12: 100 | K12: 100 | L12: 100 | M12: 100 | N12: 100 | O12: 100 | P12: 100 | V12: 30 | W12: 1130 | X12: 2
B13: MONTINI SILVIA | C13: 1947 | D13: S.C.Cernobbio | E13: 50 | F13: 100 | G13: 50 | H13: 50 | I13: 60 | J13: 50 | K13: 60 | L13: 50 | M13: 50 | N13: 60 | O13: 40 | P13: 40 | Q13: 80 | R13: 60 | S13: 80 | T13: 80 | U13: 80 | V13: 60 | W13: 1100 | X13: 3
B14: BONZANI MILENA | C14: 1949 | D14: S.C.Cernobbio | E14: 60 | G14: 60 | H14: 60 | I14: 50 | J14: 60 | K14: 50 | L14: 60 | M14: 60 | Q14: 100 | R14: 80 | S14: 60 | T14: 50 | U14: 50 | V14: 30 | W14: 830 | X14: 4
B15: MAGLIA MARIKA | C15: 1947 | D15: S.C.Cernobbio | E15: 40 | F15: 50 | G15: 40 | H15: 40 | I15: 40 | J15: 40 | K15: 40 | L15: 1 | M15: 1 | N15: 40 | O15: 45 | P15: 45 | Q15: 60 | R15: 50 | S15: 50 | T15: 60 | U15: 60 | V15: 60 | W15: 762 | X15: 5
B16: CONSONNI MARILU' | C16: 1948 | D16: S.C.Cernobbio | E16: 45 | F16: 80 | G16: 45 | H16: 45 | I16: 45 | J16: 45 | K16: 45 | L16: 45 | M16: 45 | N16: 50 | O16: 60 | P16: 60 | Q16: 50 | R16: 1 | S16: 1 | T16: 1 | U16: 1 | V16: 60 | W16: 724 | X16: 6
B17: PEZZOTTA LUCIANA | C17: 1942 | D17: S.C.La Recastello | F17: 60 | N17: 45 | O17: 50 | P17: 50 | W17: 205 | X17: 7
B19: FEMMINILE DAME C4 | C19: Anno | D19: Società | E19: Temù | F19: M.Pora | G19: S.taCat | H19: S.taCat | I19: S.taCat | J19: Comb. | K19: Chiesa | L19: Chiesa | M19: Comb. | N19: Chiesa | O19: Chiesa | P19: Comb. | Q19: Tonale | R19: Tonale | S19: Tonale | T19: Tonale | U19: Comb. | V19: Bonus | W19: Totale | X19: Classifica
B20: dal 1951 al 1955
B21: CARRARA GRAZIELLA | C21: 1950 | D21: S.C.La Recastello | E21: 100 | F21: 100 | G21: 100 | H21: 100 | I21: 100 | J21: 100 | K21: 100 | L21: 100 | M21: 100 | N21: 100 | O21: 100 | P21: 100 | Q21: 100 | R21: 100 | S21: 100 | T21: 80 | U21: 80 | V21: 60 | W21: =SUM(E21:V21) -> 1720 | X21: 1
B22: GAENI ARTEMIDE | C22: 1950 | D22: S.C.La Recastello | E22: 60 | F22: 60 | G22: 60 | H22: 60 | I22: 50 | J22: 60 | K22: 80 | L22: 60 | M22: 80 | N22: 80 | O22: 80 | P22: 80 | Q22: 60 | R22: 60 | S22: 60 | T22: 60 | U22: 60 | V22: 60 | W22: =SUM(E22:V22) -> 1170 | X22: 2
B23: CASTELLINI IVANA | C23: 1951 | D23: S.C.Cernobbio | E23: 80 | F23: 80 | G23: 80 | H23: 80 | I23: 80 | J23: 80 | K23: 60 | L23: 80 | M23: 60 | Q23: 80 | R23: 80 | S23: 80 | T23: 100 | U23: 100 | V23: 30 | W23: =SUM(E23:V23) -> 1150 | X23: 3
B24: GAMBA JONNE | C24: 1950 | D24: S.C.La Recastello | E24: 50 | F24: 50 | G24: 50 | H24: 50 | I24: 60 | J24: 50 | Q24: 50 | R24: 50 | S24: 50 | T24: 50 | U24: 50 | V24: 30 | W24: =SUM(E24:V24) -> 590 | X24: 4
B26: FEMMINILE DAME C3 | C26: Anno | D26: Società | E26: Temù | F26: M.Pora | G26: S.taCat | H26: S.taCat | I26: S.taCat | J26: Comb. | K26: Chiesa | L26: Chiesa | M26: Comb. | N26: Chiesa | O26: Chiesa | P26: Comb. | Q26: Tonale | R26: Tonale | S26: Tonale | T26: Tonale | U26: Comb. | V26: Bonus | W26: Totale | X26: Classifica
B27: dal 1956 al 1965
B28: DE BATTISTI LORENA | C28: 1963 | D28: S.C.Cernobbio | E28: 80 | F28: 80 | H28: 60 | I28: 50 | J28: 60 | K28: 80 | L28: 60 | M28: 60 | N28: 100 | O28: 100 | P28: 100 | Q28: 80 | R28: 80 | V28: 30 | W28: =SUM(E28:V28) -> 1020 | X28: 1
B29: MERELLI DELIA | C29: 1964 | D29: S.C.La Recastello | E29: 40 | F29: 50 | G29: 60 | H29: 100 | I29: 80 | J29: 80 | K29: 100 | L29: 100 | M29: 100 | Q29: 50 | R29: 36 | S29: 40 | T29: 50 | U29: 45 | V29: 30 | W29: 961 | X29: 2
B30: MATTARELLI BRUNELLA | C30: 1957 | D30: S.C.Ski Mountain | E30: 60 | F30: 60 | G30: 80 | H30: 50 | I30: 60 | J30: 50 | K30: 50 | L30: 50 | M30: 50 | N30: 45 | O30: 45 | P30: 45 | Q30: 45 | R30: 50 | S30: 45 | T30: 36 | U30: 36 | V30: 60 | W30: 917 | X30: 3
B31: BELOTTI P.ANGELA | C31: 1956 | D31: S.C.La Recastello | E31: 50 | F31: 45 | G31: 45 | H31: 29 | I31: 29 | J31: 29 | K31: 60 | L31: 80 | M31: 80 | N31: 50 | O31: 50 | P31: 50 | Q31: 32 | S31: 36 | T31: 40 | U31: 40 | V31: 30 | W31: 775 | X31: 4
B32: ZUGNONI DANIELA | C32: 1955 | D32: S.C.Cernobbio | K32: 40 | L32: 36 | M32: 36 | N32: 80 | O32: 80 | P32: 80 | Q32: 60 | R32: 60 | S32: 80 | T32: 100 | U32: 80 | V32: 30 | W32: 762 | X32: 5
B33: FUMAGALLI P.ANGELA | C33: 1963 | D33: S.C.La Recastello | E33: 100 | Q33: 100 | R33: 100 | S33: 100 | T33: 80 | U33: 100 | V33: 10 | W33: 590 | X33: 6
B34: MERELLI MARIA LUISA | C34: 1958 | D34: S.C.La Recastello | F34: 1 | G34: 36 | H34: 36 | I34: 32 | J34: 32 | K34: 45 | L34: 45 | M34: 45 | Q34: 36 | R34: 40 | S34: 50 | T34: 45 | U34: 50 | V34: 30 | W34: 523 | X34: 7
B35: PEZZOTTA SILVANA | C35: 1957 | D35: S.C.La Recastello | F35: 100 | G35: 100 | H35: 80 | I35: 100 | J35: 100 | V35: 10 | W35: 490 | X35: 8
B36: VOLPATO CLAUDIA | C36: 1964 | D36: S.C.La Recastello | N36: 60 | O36: 60 | P36: 60 | Q36: 40 | R36: 45 | S36: 60 | T36: 60 | U36: 60 | V36: 10 | W36: 455 | X36: 9
B37: COMINELLI LIVIA | C37: 1958 | D37: S.C.La Recastello | E37: 45 | F37: 40 | G37: 32 | H37: 32 | I37: 36 | J37: 36 | N37: 40 | O37: 40 | P37: 40 | V37: 10 | W37: 351 | X37: 10
B38: DONINI DANIELA | C38: 1962 | D38: S.C.La Recastello | E38: 36 | G38: 40 | H38: 45 | I38: 45 | J38: 45 | K38: 36 | L38: 40 | M38: 40 | V38: 10 | W38: 337 | X38: 11
B39: CORDANI ELENA | C39: 1955 | D39: S.C.La Recastello | G39: 50 | H39: 40 | I39: 40 | J39: 40 | W39: 170 | X39: 12
B40: CAPPELLA ANNA | C40: 1955 | D40: S.C.La Recastello | F40: 32 | N40: 36 | O40: 36 | P40: 36 | W40: 140 | X40: 13
B41: POLLASTRI LAURA | C41: 1959 | D41: S.C.La Recastello | F41: 36 | W41: 36 | X41: 14
B43: FEMMINILE DAME C2 | C43: Anno | D43: Società | E43: Temù | F43: M.Pora | G43: S.taCat | H43: S.taCat | I43: S.taCat | J43: Comb. | K43: Chiesa | L43: Chiesa | M43: Comb. | N43: Chiesa | O43: Chiesa | P43: Comb. | Q43: Tonale | R43: Tonale | S43: Tonale | T43: Tonale | U43: Comb. | V43: Bonus | W43: Totale | X43: Classifica
B44: dal 1966 al 1975
B45: GAMBA ROBERTA | C45: 1971 | D45: S.C.Cernobbio | E45: 100 | G45: 100 | H45: 80 | I45: 100 | J45: 80 | K45: 100 | L45: 100 | M45: 100 | N45: 100 | O45: 100 | P45: 100 | Q45: 100 | R45: 100 | S45: 100 | T45: 100 | U45: 100 | V45: 30 | W45: =SUM(E45:V45) -> 1590 | X45: 1
B46: PERROTTA CARMEN | C46: 1967 | D46: S.C.Cernobbio | G46: 50 | H46: 50 | J46: 1 | K46: 50 | L46: 50 | M46: 50 | N46: 80 | O46: 80 | P46: 80 | Q46: 80 | R46: 80 | S46: 80 | T46: 80 | U46: 80 | V46: 30 | W46: =SUM(E46:V46) -> 921 | X46: 2
B47: DONINI BRUNA | C47: 1965 | D47: S.C.La Recastello | E47: 80 | G47: 60 | H47: 60 | I47: 60 | J47: 60 | K47: 60 | L47: 60 | M47: 60 | V47: 10 | W47: =SUM(E47:V47) -> 510 | X47: 3
B48: COLOMBO MELISSA | C48: 1967 | D48: S.C.Ski Mountain | G48: 80 | H48: 100 | I48: 80 | J48: 100 | W48: =SUM(E48:V48) -> 360 | X48: 4
B49: GENESINI GRAZIA | C49: 1970 | D49: S.C.Cernobbio | K49: 80 | L49: 80 | M49: 80 | W49: =SUM(E49:V49) -> 240 | X49: 5
B51: FEMMINILE DAME C1 | C51: Anno | D51: Società | E51: Temù | F51: M.Pora | G51: S.taCat | H51: S.taCat | I51: S.taCat | J51: Comb. | K51: Chiesa | L51: Chiesa | M51: Comb. | N51: Chiesa | O51: Chiesa | P51: Comb. | Q51: Tonale | R51: Tonale | S51: Tonale | T51: Tonale | U51: Comb. | V51: Bonus | W51: Totale | X51: Classifica
B52: dal 1976 al 1988
B53: NOSEDA MONICA | C53: 1982 | D53: S.C.Cernobbio | G53: 100 | H53: 100 | I53: 100 | J53: 100 | N53: 100 | O53: 100 | P53: 100 | V53: 10 | W53: =SUM(G53:V53) -> 710 | X53: 1
B55: SUPER 85 | C55: Anno | D55: Società | E55: Temù | F55: M.Pora | G55: S.taCat | H55: S.taCat | I55: S.taCat | J55: Comb. | K55: Chiesa | L55: Chiesa | M55: Comb. | N55: Chiesa | O55: Chiesa | P55: Comb. | Q55: Tonale | R55: Tonale | S55: Tonale | T55: Tonale | U55: Comb. | V55: Bonus | W55: Totale | X55: Classifica
B56: dal 1935 e precedenti
B57: CANTU' ROBERTO | C57: 1930 | D57: S.C.Cernobbio | E57: 80 | I57: 100 | J57: 1 | N57: 100 | O57: 100 | P57: 100 | Q57: 100 | R57: 1 | V57: 10 | W57: =SUM(E57:V57) -> 592 | X57: 1
B58: AMIGONI LUIGI | C58: 1934 | D58: S.C.La Recastello | E58: 100 | F58: 100 | W58: =SUM(E58:V58) -> 200 | X58: 2
B59: MORO MARIO | C59: 1934 | D59: S.C.Ski Mountain | E59: 1 | W59: =SUM(E59:V59) -> 1 | X59: 3
B61: SUPER 80 | C61: Anno | D61: Società | E61: Temù | F61: M.Pora | G61: S.taCat | H61: S.taCat | I61: S.taCat | J61: Comb. | K61: Chiesa | L61: Chiesa | M61: Comb. | N61: Chiesa | O61: Chiesa | P61: Comb. | Q61: Tonale | R61: Tonale | S61: Tonale | T61: Tonale | U61: Comb. | V61: Bonus | W61: Totale | X61: Classifica
B62: dal 1936 al 1940
B63: VALLE' G.ANTONIO | C63: 1939 | D63: S.C.Ski Mountain | E63: 100 | F63: 100 | G63: 100 | H63: 100 | I63: 100 | J63: 100 | K63: 80 | L63: 100 | M63: 100 | N63: 80 | O63: 80 | P63: 80 | Q63: 100 | R63: 100 | S63: 100 | T63: 100 | U63: 100 | V63: 60 | W63: =SUM(E63:V63) -> 1680 | X63: 1
B64: ORSI ALESSANDRO | C64: 1939 | D64: S.C.La Recastello | E64: 80 | G64: 80 | H64: 80 | I64: 80 | J64: 80 | K64: 100 | L64: 1 | M64: 1 | N64: 100 | O64: 100 | P64: 100 | Q64: 80 | R64: 1 | V64: 30 | W64: 913 | X64: 2
B65: TRAINI SANDRO | C65: 1938 | D65: S.C.La Recastello | E65: 60 | F65: 80 | G65: 60 | H65: 60 | I65: 60 | J65: 60 | K65: 60 | L65: 80 | M65: 80 | N65: 60 | O65: 60 | P65: 60 | V65: 30 | W65: 810 | X65: 3
B66: DE BATTISTI G.CARLO | C66: 1935 | D66: S.C.Cernobbio | E66: 50 | F66: 60 | G66: 50 | H66: 50 | I66: 50 | J66: 50 | K66: 50 | L66: 60 | M66: 60 | N66: 50 | O66: 1 | P66: 1 | Q66: 60 | R66: 80 | S66: 80 | U66: 1 | V66: 30 | W66: 783 | X66: 4
B67: CESATI SANDRO | C67: 1936 | D67: S.C.Ski Mountain | E67: 45 | G67: 45 | H67: 45 | I67: 45 | J67: 45 | K67: 45 | L67: 50 | M67: 50 | V67: 10 | W67: 380 | X67: 5
B68: CASSINA ENNIO | C68: 1937 | D68: S.C.Cernobbio | K68: 40 | L68: 1 | M68: 1 | W68: 42 | X68: 6
B69: GIPPONI CARLO | C69: 1936 | D69: S.C.La Recastello | E69: 1 | W69: 1 | X69: 7
B71: SUPER 75 | C71: Anno | D71: Società | E71: Temù | F71: M.Pora | G71: S.taCat | H71: S.taCat | I71: S.taCat | J71: Comb. | K71: Chiesa | L71: Chiesa | M71: Comb. | N71: Chiesa | O71: Chiesa | P71: Comb. | Q71: Tonale | R71: Tonale | S71: Tonale | T71: Tonale | U71: Comb. | V71: Bonus | W71: Totale | X71: Classifica
B72: dal 1941 al 1945
B73: FERRI GIUSEPPE | C73: 1944 | D73: S.C.La Recastello | G73: 100 | H73: 100 | I73: 100 | J73: 100 | K73: 80 | L73: 80 | M73: 80 | N73: 80 | O73: 100 | P73: 100 | Q73: 100 | R73: 100 | S73: 100 | T73: 100 | U73: 100 | V73: 30 | W73: =SUM(E73:V73) -> 1450 | X73: 1
B74: PELIZZARI GIANGIACOMO | C74: 1943 | D74: S.C.Cernobbio | E74: 60 | F74: 100 | G74: 50 | H74: 80 | I74: 80 | J74: 80 | K74: 50 | L74: 60 | M74: 60 | N74: 60 | O74: 60 | P74: 60 | Q74: 80 | R74: 60 | S74: 60 | T74: 80 | U74: 80 | V74: 60 | W74: 1220 | X74: 2
B75: ARIZZI CARLO | C75: 1943 | D75: S.C.Ski Mountain | E75: 50 | F75: 60 | G75: 80 | H75: 50 | I75: 50 | J75: 50 | K75: 60 | L75: 50 | M75: 50 | N75: 45 | O75: 80 | P75: 80 | Q75: 60 | R75: 80 | S75: 80 | T75: 60 | U75: 60 | V75: 60 | W75: 1105 | X75: 3
B76: GATTI FRANCO | C76: 1943 | D76: S.C.Ski Mountain | E76: 1 | F76: 50 | G76: 60 | H76: 60 | I76: 60 | J76: 60 | K76: 45 | L76: 45 | M76: 45 | S76: 50 | T76: 50 | U76: 50 | V76: 30 | W76: 606 | X76: 4
B77: SPLUGA ENZO | C77: 1942 | D77: S.C.La Recastello | E77: 45 | F77: 45 | G77: 45 | H77: 40 | I77: 45 | J77: 45 | K77: 36 | L77: 36 | M77: 36 | N77: 40 | O77: 50 | P77: 50 | V77: 30 | W77: 543 | X77: 5
B78: BAVO NATALINO | C78: 1943 | D78: S.C.Cernobbio | E78: 100 | K78: 100 | L78: 100 | M78: 100 | N78: 100 | P78: 1 | V78: 10 | W78: 511 | X78: 6
B79: PIRAS ORIO | C79: 1941 | D79: S.C.Cernobbio | H79: 45 | I79: 40 | J79: 40 | K79: 40 | L79: 40 | M79: 40 | N79: 50 | O79: 1 | P79: 1 | V79: 10 | W79: 307 | X79: 7
B80: MASCHERONI G.FRANCO | C80: 1940 | D80: S.C.Cernobbio | K80: 32 | L80: 32 | M80: 32 | W80: 96 | X80: 8
B81: BATTISTINI FELICE | C81: 1941 | D81: S.C.Ski Mountain | F81: 80 | W81: 80 | X81: 9
B82: CATTANEO ACHILLE | C82: 1943 | D82: S.C.La Recastello | E82: 80 | W82: 80 | X82: 9
B83: GILARDONI FRANCESCO | C83: 1943 | D83: S.C.Cernobbio
B85: SUPER 70 | C85: Anno | D85: Società | E85: Temù | F85: M.Pora | G85: S.taCat | H85: S.taCat | I85: S.taCat | J85: Comb. | K85: Chiesa | L85: Chiesa | M85: Comb. | N85: Chiesa | O85: Chiesa | P85: Comb. | Q85: Tonale | R85: Tonale | S85: Tonale | T85: Tonale | U85: Comb. | V85: Bonus | W85: Totale | X85: Classifica
B86: dal 1946 al 1950
B87: FERRI CARLO | C87: 1949 | D87: S.C.Cernobbio | E87: 100 | F87: 100 | G87: 100 | H87: 60 | I87: 80 | J87: 60 | K87: 60 | L87: 80 | M87: 80 | N87: 60 | O87: 80 | P87: 80 | Q87: 60 | R87: 80 | S87: 80 | T87: 100 | U87: 80 | V87: 60 | W87: =SUM(E87:V87) -> 1400 | X87: 1
B88: BERERA LINO | C88: 1949 | D88: S.C.La Recastello | E88: 50 | F88: 60 | G88: 50 | H88: 45 | I88: 45 | J88: 45 | K88: 80 | L88: 45 | M88: 60 | N88: 45 | O88: 45 | P88: 45 | Q88: 80 | R88: 60 | S88: 100 | T88: 80 | U88: 100 | V88: 60 | W88: 1095 | X88: 2
B89: GARBELLINI LINO | C89: 1947 | D89: S.C.Cernobbio | E89: 1 | F89: 80 | G89: 60 | H89: 50 | I89: 50 | J89: 50 | K89: 50 | L89: 50 | M89: 50 | N89: 50 | O89: 50 | P89: 50 | Q89: 100 | R89: 100 | S89: 60 | T89: 60 | U89: 60 | V89: 60 | W89: 1031 | X89: 3
B90: BAVO GIUSEPPE | C90: 1946 | D90: S.C.Cernobbio | E90: 80 | H90: 100 | I90: 100 | J90: 100 | K90: 100 | L90: 100 | M90: 100 | N90: 100 | O90: 100 | P90: 100 | V90: 10 | W90: 990 | X90: 4
B91: FUMASONI ROBERTO | C91: 1946 | D91: S.C.Cernobbio | E91: 60 | G91: 80 | H91: 80 | I91: 60 | J91: 80 | K91: 45 | L91: 60 | M91: 45 | N91: 80 | O91: 60 | P91: 60 | V91: 30 | W91: 740 | X91: 5
B92: NOVELLI NANDO | C92: 1947 | D92: S.C.La Recastello | E92: 40 | F92: 50 | G92: 36 | H92: 29 | I92: 26 | J92: 26 | K92: 36 | L92: 36 | M92: 36 | N92: 40 | O92: 40 | P92: 40 | Q92: 45 | R92: 50 | S92: 45 | T92: 45 | U92: 45 | V92: 60 | W92: 725 | X92: 6
B93: FERRARI DARIO | C93: 1947 | D93: S.C.La Recastello | E93: 18 | F93: 20 | G93: 22 | H93: 20 | I93: 20 | J93: 20 | K93: 29 | L93: 29 | M93: 32 | N93: 26 | O93: 22 | P93: 24 | Q93: 36 | R93: 36 | S93: 40 | T93: 40 | U93: 40 | V93: 60 | W93: 534 | X93: 7
B94: LOCATELLI EFREM | C94: 1948 | D94: G.S.A. Marinelli | E94: 26 | F94: 24 | G94: 32 | H94: 36 | I94: 36 | J94: 36 | K94: 40 | L94: 40 | M94: 40 | N94: 32 | O94: 36 | P94: 32 | V94: 30 | W94: 440 | X94: 8
B95: GHILARDI ANGELO | C95: 1947 | D95: G.S.A.Marinelli | E95: 20 | F95: 22 | G95: 26 | H95: 24 | I95: 24 | J95: 24 | K95: 24 | L95: 24 | M95: 24 | N95: 24 | O95: 26 | P95: 26 | V95: 30 | W95: 318 | X95: 9
B96: BUZZETTI ALFREDO | C96: 1949 | D96: S.C.Cernobbio | F96: 26 | K96: 32 | L96: 1 | M96: 1 | N96: 1 | O96: 29 | P96: 1 | Q96: 1 | R96: 45 | S96: 50 | T96: 50 | U96: 50 | V96: 30 | W96: 317 | X96: 10
B97: BORIERO GIANNI | C97: 1946 | D97: S.C.Cernobbio | E97: 14 | G97: 24 | H97: 22 | I97: 22 | J97: 22 | K97: 22 | L97: 26 | M97: 26 | N97: 22 | O97: 18 | P97: 22 | Q97: 32 | R97: 1 | V97: 30 | W97: 303 | X97: 11
B98: RUFFINONI ALDO | C98: 1945 | D98: S.C.La Recastello | F98: 36 | G98: 40 | H98: 32 | I98: 32 | J98: 32 | N98: 36 | O98: 32 | P98: 36 | V98: 10 | W98: 286 | X98: 12
B99: DOTTI SERGIO | C99: 1946 | D99: S.C.Cernobbio | E99: 11 | F99: 18 | G99: 16 | H99: 16 | I99: 16 | J99: 16 | K99: 20 | L99: 1 | M99: 1 | N99: 16 | O99: 1 | P99: 1 | Q99: 29 | R99: 32 | S99: 36 | U99: 1 | V99: 30 | W99: 261 | X99: 13
B100: AGAZZI LUCIO | C100: 1947 | D100: G.S.A.Marinelli | E100: 29 | F100: 29 | G100: 29 | H100: 26 | I100: 29 | J100: 29 | V100: 10 | W100: 181 | X100: 14
B101: BOMBARDIERI ENZO | C101: 1945 | D101: S.C.Cernobbio | K101: 26 | L101: 32 | M101: 29 | N101: 29 | O101: 24 | P101: 29 | V101: 10 | W101: 179 | X101: 15
B102: GALBUSERA DIEGO | C102: 1945 | D102: S.C.Cernobbio | G102: 45 | H102: 40 | I102: 40 | J102: 40 | W102: 165 | X102: 16
B103: CASSINA EZIO | C103: 1947 | D103: S.C.Cernobbio | E103: 12 | G103: 20 | Q103: 40 | R103: 40 | V103: 10 | W103: 122 | X103: 17
B104: SACCHI GINO | C104: 1947 | D104: S.C.Cernobbio | K104: 18 | L104: 20 | M104: 22 | N104: 18 | O104: 16 | P104: 18 | V104: 10 | W104: 122 | X104: 18
B105: TESTA CLAUDIO | C105: 1949 | D105: S.C.La Recastello | E105: 16 | G105: 18 | H105: 18 | I105: 18 | J105: 18 | V105: 10 | W105: 98 | X105: 19
B106: FRACCHIA MAURIZIO | C106: 1948 | D106: S.C.Cernobbio | K106: 1 | L106: 22 | M106: 1 | N106: 20 | O106: 20 | P106: 20 | V106: 10 | W106: 94 | X106: 20
B107: GRASSI GIOVANNI | C107: 1949 | D107: S.C.La Recastello | E107: 32 | F107: 45 | W107: 77 | X107: 21
B108: IMBERTI G.BATTISTA | C108: 1949 | D108: S.C.La Recastello | E108: 36 | F108: 40 | W108: 76 | X108: 22
B109: MELZI CARLO | C109: 1945 | D109: S.C.La Recastello | E109: 24 | Q109: 50 | R109: 1 | W109: 75 | X109: 23
B110: FIENGO PIETRO | C110: 1946 | D110: S.C.La Recastello | E110: 22 | F110: 32 | Q110: 1 | W110: 55 | X110: 24
B111: GUSMINI RENATO | C111: 1947 | D111: S.C.La Recastello | E111: 45 | F111: 1 | W111: 46 | X111: 25
B112: MODESTI ATTILIO | C112: 1946 | D112: S.C.Ski Mountain | E112: 15 | W112: 15 | X112: 26
B113: MONTI PRIMO | C113: 1947 | D113: S.C.Cernobbio | E113: 13 | W113: 13 | X113: 27
B114: MORETTI MARCO | C114: 1949 | D114: S.C.Ski Mountain | F114: 1 | W114: 1 | X114: 28
B116: SUPER 65 | C116: Anno | D116: Società | E116: Temù | F116: M.Pora | G116: S.taCat | H116: S.taCat | I116: S.taCat | J116: Comb. | K116: Chiesa | L116: Chiesa | M116: Comb. | N116: Chiesa | O116: Chiesa | P116: Comb. | Q116: Tonale | R116: Tonale | S116: Tonale | T116: Tonale | U116: Comb. | V116: Bonus | W116: Totale | X116: Classifica
B117: sdal 1951 al 1955
B118: BERGAMELLI G.PIETRO | C118: 1954 | D118: S.C.Ski Mountain | E118: 80 | F118: 100 | G118: 80 | H118: 100 | I118: 80 | J118: 80 | K118: 80 | L118: 60 | M118: 60 | N118: 100 | O118: 80 | P118: 100 | Q118: 60 | R118: 80 | S118: 100 | T118: 100 | U118: 100 | V118: 60 | W118: =SUM(E118:V118) -> 1500 | X118: 1
B119: CURTONI GIORGIO | C119: 1951 | D119: S.C.Cernobbio | E119: 100 | F119: 80 | G119: 100 | H119: 80 | I119: 100 | J119: 100 | K119: 100 | L119: 80 | M119: 100 | N119: 1 | O119: 100 | P119: 1 | Q119: 100 | R119: 100 | S119: 60 | T119: 80 | U119: 80 | V119: 60 | W119: 1422 | X119: 2
B120: ZUGNONI LIVIO | C120: 1951 | D120: S.C.Cernobbio | E120: 60 | F120: 60 | G120: 60 | H120: 60 | I120: 60 | J120: 60 | K120: 60 | L120: 100 | M120: 80 | N120: 80 | O120: 50 | P120: 80 | Q120: 80 | R120: 60 | S120: 80 | T120: 60 | U120: 60 | V120: 60 | W120: 1210 | X120: 3
B121: CORBELLA PIERO | C121: 1954 | D121: S.C.La Recastello | E121: 40 | F121: 45 | K121: 50 | L121: 50 | M121: 50 | N121: 60 | O121: 45 | P121: 50 | Q121: 50 | R121: 50 | S121: 50 | T121: 50 | U121: 50 | V121: 30 | W121: 670 | X121: 4
B122: ZERBONI FAUSTO | C122: 1953 | D122: S.C.Cernobbio | E122: 36 | G122: 45 | H122: 45 | I122: 45 | J122: 45 | K122: 36 | L122: 36 | M122: 36 | N122: 50 | O122: 60 | P122: 60 | Q122: 40 | R122: 40 | V122: 30 | W122: 604 | X122: 5
B123: MAGNI GIGI | C123: 1950 | D123: S.C.La Recastello | E123: 29 | F123: 24 | G123: 24 | H123: 36 | I123: 29 | J123: 32 | K123: 24 | L123: 26 | M123: 24 | N123: 29 | O123: 24 | P123: 26 | Q123: 29 | R123: 29 | S123: 36 | T123: 40 | U123: 36 | V123: 60 | W123: 557 | X123: 6
B124: ROSSI MARCELLO | C124: 1951 | D124: S.C.Ski Mountain | E124: 45 | F124: 36 | G124: 40 | H124: 40 | I124: 40 | J124: 40 | K124: 45 | L124: 45 | M124: 45 | N124: 45 | O124: 36 | P124: 45 | V124: 30 | W124: 532 | X124: 7
B125: MARTINI SERGIO | C125: 1950 | D125: S.C.Cernobbio | E125: 18 | F125: 22 | G125: 22 | H125: 20 | I125: 22 | J125: 20 | K125: 18 | L125: 22 | M125: 20 | N125: 20 | O125: 20 | P125: 20 | Q125: 24 | R125: 24 | S125: 40 | T125: 36 | U125: 40 | V125: 60 | W125: 468 | X125: 8
B126: MODANESI ROMEO | C126: 1951 | D126: S.C.Ski Mountain | F126: 14 | K126: 26 | L126: 24 | M126: 26 | N126: 32 | O126: 29 | P126: 32 | Q126: 32 | R126: 36 | S126: 45 | T126: 45 | U126: 45 | V126: 30 | W126: 416 | X126: 9
B127: GOTTI GIORDANO | C127: 1953 | D127: S.C.Cernobbio | E127: 20 | G127: 32 | H127: 26 | I127: 24 | J127: 24 | K127: 32 | L127: 32 | M127: 32 | N127: 26 | O127: 26 | P127: 29 | Q127: 22 | R127: 26 | V127: 30 | W127: 381 | X127: 10
B128: BARONCHELLI G.MARIA | C128: 1952 | D128: S.C.La Recastello | E128: 32 | F128: 32 | G128: 26 | H128: 24 | I128: 26 | J128: 26 | N128: 36 | O128: 32 | P128: 36 | Q128: 36 | R128: 32 | V128: 30 | W128: 368 | X128: 11
B129: ALVARETA RENZO | C129: 1954 | D129: S.C.Cernobbio | E129: 26 | K129: 40 | L129: 40 | M129: 40 | N129: 40 | O129: 40 | P129: 40 | V129: 10 | W129: 276 | X129: 12
B130: GIUDES SILVANO | C130: 1951 | D130: S.C.Cernobbio | E130: 24 | H130: 22 | I130: 20 | J130: 22 | K130: 29 | L130: 29 | M130: 29 | N130: 22 | O130: 18 | P130: 22 | V130: 10 | W130: 247 | X130: 13
B131: GIUDICI GINO | C131: 1952 | D131: S.C.Cernobbio | E131: 22 | G131: 29 | H131: 32 | I131: 36 | J131: 36 | N131: 24 | O131: 22 | P131: 24 | V131: 10 | W131: 235 | X131: 14
B132: CARRARA G.BATTISTA | C132: 1950 | D132: G.S.A. Marinelli | F132: 15 | G132: 20 | H132: 18 | I132: 18 | J132: 18 | K132: 16 | L132: 16 | M132: 16 | N132: 15 | O132: 14 | P132: 15 | V132: 30 | W132: 211 | X132: 15
B133: LOCATELLI VALERIO | C133: 1952 | D133: S.C.Cernobbio | G133: 50 | H133: 50 | I133: 50 | J133: 50 | W133: 200 | X133: 16
B134: BIELLA GIUSEPPE | C134: 1950 | D134: S.C.Ski Mountain | E134: 15 | F134: 13 | G134: 18 | H134: 16 | I134: 16 | J134: 16 | K134: 14 | L134: 1 | M134: 1 | N134: 16 | O134: 16 | P134: 16 | V134: 30 | W134: 188 | X134: 17
B135: AMBROSIONI G.BATTISTA | C135: 1952 | D135: S.C.Ski Mountain | F135: 29 | K135: 22 | L135: 15 | M135: 18 | Q135: 45 | R135: 45 | V135: 10 | W135: 184 | X135: 18
B136: MANZOTTI MARCO | C136: 1952 | D136: S.C.Ski Mountain | E136: 1 | F136: 16 | K136: 20 | L136: 20 | M136: 22 | N136: 18 | O136: 15 | P136: 18 | V136: 10 | W136: 140 | X136: 19
B137: CAVAGNA GIOVANNI | C137: 1953 | D137: S.C.La Recastello | G137: 36 | H137: 29 | I137: 32 | J137: 29 | W137: 126 | X137: 20
B138: ZUGNONI MARCO | C138: 1953 | D138: S.C.Cernobbio | E138: 50 | F138: 50 | W138: 100 | X138: 21
B139: DI MATTEO GIOVANNINO | C139: 1952 | D139: S.C.La Recastello | F139: 20 | Q139: 26 | R139: 22 | W139: 68 | X139: 22
B140: ZUCCA OLINDO | C140: 1952 | D140: S.C.La Recastello | K140: 15 | L140: 18 | M140: 15 | W140: 48 | X140: 23
B141: CRESPI MASSIMO | C141: 1950 | D141: S.C.La Recastello | F141: 40 | W141: 40 | X141: 24
B142: PEROSINO RENATO | C142: 1954 | D142: S.C.La Recastello | E142: 16 | F142: 18 | W142: 34 | X142: 25
B143: MORESCHI GIOVANNI | C143: 1951 | D143: S.C.La Recastello | E143: 1 | F143: 26 | W143: 27 | X143: 26
B145: Super 60 | C145: Anno | D145: Societa' | E145: Temù | F145: M.Pora | G145: S.taCat | H145: S.taCat | I145: S.taCat | J145: Comb. | K145: Chiesa | L145: Chiesa | M145: Comb. | N145: Chiesa | O145: Chiesa | P145: Comb. | Q145: Tonale | R145: Tonale | S145: Tonale | T145: Tonale | U145: Comb. | V145: Bonus | W145: Totale | X145: Classifica
B146: dal 1956 al 1960
B147: CARRARA ADRIANO | C147: 1957 | D147: S.C.La Recastello | E147: 60 | F147: 80 | G147: 60 | H147: 60 | I147: 60 | J147: 60 | K147: 40 | L147: 50 | M147: 45 | N147: 60 | O147: 80 | P147: 60 | Q147: 1 | R147: 60 | S147: 100 | T147: 60 | U147: 80 | V147: 60 | W147: =SUM(E147:V147) -> 1076 | X147: 1
B148: SABBADINI MARIO | C148: 1955 | D148: S.C.La Recastello | E148: 80 | F148: 36 | G148: 50 | H148: 50 | I148: 40 | J148: 45 | K148: 50 | L148: 36 | M148: 50 | N148: 50 | O148: 50 | P148: 50 | Q148: 60 | R148: 80 | S148: 80 | T148: 100 | U148: 100 | V148: 60 | W148: 1067 | X148: 2
B149: ZUCCHELLI MARCO | C149: 1959 | D149: S.C.La Recastello | E149: 40 | F149: 60 | G149: 45 | H149: 40 | I149: 45 | J149: 40 | K149: 45 | L149: 60 | M149: 60 | N149: 45 | O149: 45 | P149: 45 | Q149: 80 | R149: 50 | S149: 50 | T149: 50 | U149: 50 | V149: 60 | W149: 910 | X149: 3
B150: GANDOSSI DANILO | C150: 1956 | D150: S.C.La Recastello | E150: 36 | F150: 50 | G150: 36 | H150: 36 | I150: 36 | J150: 36 | K150: 29 | L150: 45 | M150: 36 | N150: 36 | O150: 40 | P150: 36 | Q150: 40 | R150: 40 | S150: 60 | T150: 80 | U150: 60 | V150: 60 | W150: 792 | X150: 4
B151: GALAS MARIANO | C151: 1959 | D151: S.C.Cernobbio | E151: 100 | F151: 100 | G151: 100 | H151: 100 | I151: 100 | J151: 100 | K151: 100 | L151: 1 | M151: 1 | V151: 10 | W151: 712 | X151: 5
B152: VAINI GUIDO | C152: 1958 | D152: S.C.Ski Mountain | E152: 50 | F152: 45 | G152: 32 | H152: 29 | I152: 26 | J152: 29 | K152: 24 | L152: 29 | M152: 29 | N152: 32 | O152: 32 | P152: 32 | Q152: 36 | R152: 36 | S152: 40 | T152: 32 | U152: 32 | V152: 60 | W152: 625 | X152: 6
B153: DONATI ADRIANO | C153: 1958 | D153: S.C.Ski Mountain | K153: 80 | L153: 80 | M153: 100 | N153: 100 | O153: 100 | P153: 100 | V153: 10 | W153: 570 | X153: 7
B154: MAXENTI VINCENZO | C154: 1957 | D154: S.C.Cernobbio | E154: 22 | F154: 24 | G154: 16 | H154: 20 | I154: 20 | J154: 20 | K154: 15 | L154: 18 | M154: 18 | N154: 22 | O154: 24 | P154: 24 | Q154: 32 | R154: 29 | S154: 36 | T154: 36 | U154: 36 | V154: 60 | W154: 472 | X154: 8
B155: LOMBARDI CARMINE | C155: 1955 | D155: S.C.La Recastello | E155: 24 | G155: 20 | H155: 22 | I155: 22 | J155: 22 | K155: 18 | L155: 20 | M155: 22 | N155: 24 | O155: 26 | P155: 26 | Q155: 29 | R155: 26 | S155: 32 | T155: 40 | U155: 40 | V155: 30 | W155: 443 | X155: 9
B156: BORDAZZI SERGIO | C156: 1958 | D156: S.C.La Recastello | E156: 32 | F156: 29 | K156: 20 | L156: 24 | M156: 24 | Q156: 45 | R156: 32 | S156: 45 | T156: 45 | U156: 45 | V156: 30 | W156: 371 | X156: 10
B157: ORIO SERGIO | C157: 1958 | D157: S.C.Ski Mountain | G157: 80 | H157: 80 | I157: 80 | J157: 80 | W157: 320 | X157: 11
B158: SALVADORI FEDERINO | C158: 1955 | D158: S.C.Cernobbio | E158: 26 | F158: 32 | G158: 22 | H158: 26 | I158: 29 | J158: 26 | K158: 22 | L158: 1 | M158: 1 | N158: 26 | O158: 29 | P158: 29 | Q158: 1 | V158: 30 | W158: 300 | X158: 12
B159: SERMISONI GIUSEPPE | C159: 1959 | D159: S.C.Ski Mountain | K159: 60 | L159: 100 | M159: 80 | W159: 240 | X159: 13
B160: BARTESAGHI CARLO | C160: 1959 | D160: S.C.Cernobbio | K160: 36 | L160: 32 | M160: 40 | N160: 40 | O160: 36 | P160: 40 | V160: 10 | W160: 234 | X160: 14
B161: RIVOLTA ANTONIO | C161: 1956 | D161: S.C.Cernobbio | N161: 80 | O161: 60 | P161: 80 | W161: 220 | X161: 15
B162: MIGLIORATI SERGIO | C162: 1959 | D162: S.C.La Recastello | Q162: 100 | R162: 100 | W162: 200 | X162: 16
B163: GALBUSERA GUIDO | C163: 1958 | D163: S.C.Cernobbio | E163: 45 | K163: 32 | L163: 40 | M163: 32 | N163: 29 | P163: 1 | V163: 10 | W163: 189 | X163: 17
B164: COMPAGNONI CANDIDO | C164: 1955 | D164: S.C.Cernobbio | G164: 40 | H164: 45 | I164: 50 | J164: 50 | W164: 185 | X164: 18
B165: BANFI LUCA | C165: 1959 | D165: S.C.Ski Mountain | G165: 29 | H165: 32 | I165: 32 | J165: 32 | W165: 125 | X165: 19
B166: BALZI IVANO | C166: 1958 | D166: S.C.La Recastello | E166: 29 | Q166: 50 | R166: 45 | W166: 124 | X166: 20
B167: TAGLIAFERRO MAURIZIO | C167: 1959 | D167: S.C.Cernobbio | K167: 26 | L167: 26 | M167: 26 | W167: 78 | X167: 21
B168: CASANOVA GIUSEPPE | C168: 1955 | D168: S.C.La Recastello | N168: 20 | O168: 22 | P168: 22 | W168: 64 | X168: 22
B169: ARRIGONI RUGGERO | C169: 1956 | D169: S.C.La Recastello | K169: 16 | L169: 22 | M169: 20 | W169: 58 | X169: 23
B170: GIORDANO MICHELE | C170: 1955 | D170: S.C.Cernobbio | F170: 26 | G170: 18 | W170: 44 | X170: 24
B171: TENCI FERMO | C171: 1956 | D171: S.C.Cernobbio | F171: 40 | W171: 40 | X171: 25
B172: COMPAGNONI FLAVIO | C172: 1958 | D172: S.C.Cernobbio | G172: 26 | W172: 26 | X172: 26
B174: Super 55 | C174: Anno | D174: Società | E174: Temù | F174: M.Pora | G174: S.taCat | H174: S.taCat | I174: S.taCat | J174: Comb. | K174: Chiesa | L174: Chiesa | M174: Comb. | N174: Chiesa | O174: Chiesa | P174: Comb. | Q174: Tonale | R174: Tonale | S174: Tonale | T174: Tonale | U174: Comb. | V174: Bonus | W174: Totale | X174: Classifica
B175: dal 1961 al 1965
B176: SALVADORI MARCO | C176: 1963 | D176: S.C.Cernobbio | E176: 80 | F176: 100 | G176: 80 | H176: 80 | I176: 45 | J176: 80 | K176: 80 | L176: 50 | M176: 60 | N176: 100 | O176: 100 | P176: 100 | Q176: 1 | R176: 100 | S176: 80 | T176: 100 | U176: 80 | V176: 60 | W176: =SUM(E176:V176) -> 1376 | X176: 1
B177: POMONI FAUSTO | C177: 1961 | D177: S.C.Cernobbio | E177: 60 | G177: 60 | H177: 60 | I177: 100 | J177: 100 | K177: 60 | L177: 60 | M177: 50 | N177: 60 | O177: 60 | P177: 60 | Q177: 100 | R177: 80 | S177: 100 | T177: 80 | U177: 100 | V177: 30 | W177: 1220 | X177: 2
B178: TOMBINI P.ANGELO | C178: 1960 | D178: S.C.Ski Mountain | E178: 1 | F178: 60 | G178: 50 | H178: 50 | I178: 60 | J178: 50 | K178: 45 | L178: 45 | M178: 45 | N178: 50 | O178: 50 | P178: 50 | Q178: 60 | R178: 50 | S178: 60 | T178: 50 | U178: 60 | V178: 60 | W178: 896 | X178: 3
B179: CATTANEO FABRIZIO | C179: 1960 | D179: S.C.La Recastello | G179: 45 | H179: 45 | I179: 80 | J179: 60 | K179: 40 | L179: 40 | M179: 40 | N179: 40 | O179: 45 | P179: 40 | Q179: 80 | R179: 60 | S179: 1 | T179: 60 | U179: 1 | V179: 30 | W179: 707 | X179: 4
B180: CANCLINI DAVIDE | C180: 1963 | D180: S.C.Cernobbio | E180: 50 | F180: 29 | G180: 36 | H180: 36 | I180: 40 | J180: 40 | K180: 36 | L180: 36 | M180: 36 | Q180: 40 | R180: 1 | S180: 50 | T180: 45 | U180: 50 | V180: 30 | W180: 555 | X180: 5
B181: ASTI MASSIMO | C181: 1962 | D181: S.C.Ski Mountain | K181: 100 | L181: 100 | M181: 100 | N181: 80 | O181: 80 | P181: 80 | V181: 10 | W181: 550 | X181: 6
B182: PINI FRANCESCO | C182: 1961 | D182: S.C.Ski Mountain | E182: 40 | F182: 26 | G182: 29 | H182: 29 | I182: 36 | J182: 36 | K182: 29 | L182: 29 | M182: 29 | N182: 36 | O182: 32 | P182: 36 | V182: 30 | W182: 417 | X182: 7
B183: FAZZINI AMOS | C183: 1960 | D183: S.C.Cernobbio | E183: 100 | K183: 50 | L183: 80 | M183: 80 | W183: 310 | X183: 8
B184: CARMINI STEFANO | C184: 1961 | D184: S.C.Ski Mountain | E184: 1 | F184: 50 | H184: 32 | I184: 50 | J184: 45 | Q184: 45 | R184: 40 | V184: 10 | W184: 273 | X184: 9
B185: COLOMBO STEFANO | C185: 1961 | D185: S.C.Ski Mountain | E185: 36 | F185: 24 | G185: 32 | K185: 32 | L185: 32 | M185: 32 | N185: 1 | O185: 36 | P185: 1 | Q185: 1 | V185: 30 | W185: 257 | X185: 10
B186: COMPAGNONI FIORENZO | C186: 1963 | D186: S.C.Cernobbio | G186: 100 | H186: 100 | I186: 1 | J186: 1 | W186: 202 | X186: 11
B187: ACQUISTAPACE ALDO | C187: 1961 | D187: S.C.Cernobbio | K187: 26 | L187: 26 | M187: 26 | N187: 32 | O187: 29 | P187: 32 | V187: 10 | W187: 181 | X187: 12
B188: MARTINO PIETRO | C188: 1960 | D188: S.C.Cernobbio | F188: 45 | N188: 45 | O188: 40 | P188: 45 | W188: 175 | X188: 13
B189: PEZZOLI GIACOMO | C189: 1961 | D189: S.C.La Recastello | F189: 32 | Q189: 50 | R189: 45 | W189: 127 | X189: 14
B190: ROCCA MASSIMO | C190: 1964 | D190: S.C.Cernobbio | E190: 45 | Q190: 36 | R190: 36 | W190: 117 | X190: 15
B191: POROTTO MARCO | C191: 1962 | D191: S.C.Cernobbio | G191: 40 | H191: 40 | I191: 1 | J191: 1 | W191: 82 | X191: 16
B192: MANGINI BATTISTA | C192: 1961 | D192: S.C.La Recastello | F192: 80 | W192: 80 | X192: 17
B193: MANGINI G.PIETRO | C193: 1964 | D193: S.C.La Recastello | F193: 40 | W193: 40 | X193: 18
B194: PEZZOLI FABIO | C194: 1960 | D194: S.C.La Recastello | F194: 36 | Q194: 1 | R194: 1 | W194: 38 | X194: 19
B196: Super 50 | C196: Anno | D196: Società | E196: Temù | F196: M.Pora | G196: S.taCat | H196: S.taCat | I196: S.taCat | J196: Comb. | K196: Chiesa | L196: Chiesa | M196: Comb. | N196: Chiesa | O196: Chiesa | P196: Comb. | Q196: Tonale | R196: Tonale | S196: Tonale | T196: Tonale | U196: Comb. | V196: Bonus | W196: Totale | X196: Classifica
B197: dal 1966 al 1971
B198: COLOMBO STEFANO | C198: 1966 | D198: S.C.Ski Mountain | E198: 100 | F198: 100 | H198: 100 | I198: 100 | J198: 100 | K198: 80 | L198: 80 | M198: 80 | N198: 100 | O198: 80 | P198: 100 | Q198: 100 | R198: 100 | V198: 30 | W198: =SUM(E198:V198) -> 1250 | X198: 1
B199: STEFANO GIANNI | C199: 1970 | D199: S.C.Ski Mountain | F199: 50 | K199: 50 | L199: 50 | M199: 50 | N199: 60 | O199: 50 | P199: 60 | Q199: 80 | R199: 80 | V199: 10 | W199: 540 | X199: 2
B200: MULAZZI GIANNI | C200: 1966 | D200: S.C.Ski Mountain | F200: 80 | K200: 60 | L200: 60 | M200: 60 | N200: 1 | O200: 100 | P200: 1 | V200: 10 | W200: 372 | X200: 3
B201: MENOTTI ALBERTO | C201: 1967 | D201: S.C.Ski Mountain | K201: 100 | L201: 100 | M201: 100 | W201: 300 | X201: 4
B202: CANTONI DAVIDE | C202: 1967 | D202: S.C.Cernobbio | H202: 80 | I202: 80 | J202: 80 | W202: 240 | X202: 5
B203: CIAPPONI WALER | C203: 1969 | D203: S.C.Cernobbio | N203: 80 | O203: 60 | P203: 80 | W203: 220 | X203: 6
B204: MOLTENI MASSIMILIANO | C204: 1966 | D204: S.C.Cernobbio | E204: 60 | F204: 40 | W204: 100 | X204: 7
B205: PLONA MARCO | C205: 1966 | D205: S.C.Cernobbio | E205: 80 | W205: 80 | X205: 8
B206: SIBOLDI GIULIO | C206: 1970 | D206: S.C.La Recastello | F206: 60 | W206: 60 | X206: 9
B207: FUGAZZA ENNIO | C207: 1966 | D207: S.C.La Recastello | F207: 45 | W207: 45 | X207: 10
B209: Super 40 | C209: Anno | D209: Società | E209: Temù | F209: M.Pora | G209: S.taCat | H209: S.taCat | I209: S.taCat | J209: Comb. | K209: Chiesa | L209: Chiesa | M209: Comb. | N209: Chiesa | O209: Chiesa | P209: Comb. | Q209: Tonale | R209: Tonale | S209: Tonale | T209: Tonale | U209: Comb. | V209: Bonus | W209: Totale | X209: Classifica
B210: dal 1972 al 1981
B211: FRACCHIA ENRICO | C211: 1974 | D211: S.C.Cernobbio | N211: 100 | O211: 100 | P211: 100 | W211: =SUM(E211:V211) -> 300 | X211: 1
B212: SALA SIMONE | C212: 1977 | D212: S.C.Ski Mountain | K212: 100 | L212: 100 | M212: 100 | W212: =SUM(E212:V212) -> 300 | X212: 1
B213: DEI CAS G,.LUCA | C213: 1974 | D213: S.C.Cernobbio | N213: 80 | O213: 80 | P213: 80 | W213: =SUM(E213:V213) -> 240 | X213: 3
B214: ZANETTI ROSSANO | C214: 1972 | D214: S.C.Ski Mountain | Q214: 100 | R214: 100 | W214: =SUM(E214:V214) -> 200 | X214: 4
B215: BARZON DAVIDE | C215: 1999 | D215: S.C.Cernobbio | E215: 100 | W215: =SUM(E215:V215) -> 100 | X215: 5
B217: Super 30 | C217: Anno | D217: Società | E217: Temù | F217: M.Pora | G217: S.taCat | H217: S.taCat | I217: S.taCat | J217: Comb. | K217: Chiesa | L217: Chiesa | M217: Comb. | N217: Chiesa | O217: Chiesa | P217: Comb. | Q217: Tonale | R217: Tonale | S217: Tonale | T217: Tonale | U217: Comb. | V217: Bonus | W217: Totale | X217: Classifica
B218: dal 1982 al 1991
B221: Super 20 | C221: Anno | D221: Società | E221: Temù | F221: M.Pora | G221: S.taCat | H221: S.taCat | I221: S.taCat | J221: Comb. | K221: Chiesa | L221: Chiesa | M221: Comb. | N221: Chiesa | O221: Chiesa | P221: Comb. | Q221: Tonale | R221: Tonale | S221: Tonale | T221: Tonale | U221: Comb. | V221: Bonus | W221: Totale | X221: Classifica
B222: dal 1992 al 2001
B223: MANGINI MARCO | C223: 1996 | D223: S.C.La Recastello | F223: 100 | W223: 100 | X223: 1
... 1 more rows

Sheet Foglio2
